bitfinex/quotes_BTCUSD_20240927
["timestamp","ask_amount","ask_price","bid_price","bid_amount"]
[1727469149157,0.000827,65913.0,65912.0,0.34508826]
[1727469150413,0.000827,65913.0,65912.0,0.03808332]
[1727469151901,0.095227,65913.0,65912.0,0.03808332]
[1727469152093,0.1857497,65913.0,65912.0,0.03808332]
[1727469152503,0.1857497,65913.0,65912.0,0.02993153]
[1727469152927,0.1857497,65913.0,65912.0,0.00193153]
[1727469153217,0.1857497,65913.0,65912.0,0.01593153]
[1727469153441,0.3424647,65913.0,65912.0,0.02993153]
[1727469154632,0.3424647,65913.0,65912.0,0.00193153]
[1727469155052,0.3424647,65913.0,65912.0,0.00993153]
[1727469155469,0.3424647,65913.0,65912.0,0.00193153]
[1727469155882,0.3424647,65913.0,65912.0,0.01093153]
[1727469157003,0.49775264,65913.0,65912.0,0.01093153]
[1727469157230,0.005,65902.0,65901.0,0.001654]
[1727469157450,0.15674,65902.0,65901.0,0.001654]
[1727469157680,0.42375926,65902.0,65901.0,0.00978562]
[1727469157911,0.42375926,65902.0,65901.0,0.00193153]
[1727469159302,0.5860472,65902.0,65901.0,0.00593153]
[1727469159767,0.5860472,65902.0,65901.0,0.01193153]
[1727469160220,0.5860472,65902.0,65901.0,0.00593153]
[1727469160440,0.5860472,65902.0,65901.0,0.00193153]
[1727469161583,0.5860472,65902.0,65901.0,0.00293153]
[1727469162261,0.6860472,65902.0,65901.0,0.00193153]
[1727469162504,0.7090472,65902.0,65901.0,0.00193153]
[1727469162721,0.75848645,65902.0,65901.0,0.00193153]
[1727469162936,0.76348645,65902.0,65901.0,0.00193153]
[1727469163145,0.7090472,65902.0,65901.0,0.00193153]
[1727469163423,0.7200472,65902.0,65901.0,0.00293153]
[1727469163548,0.7200472,65902.0,65888.0,0.049154]
[1727469163549,0.33087,65889.0,65888.0,0.049154]
[1727469163768,0.4459135,65889.0,65888.0,0.05737754]
[1727469163972,0.4459135,65889.0,65888.0,0.00822354]
[1727469164149,0.151772,65888.0,65887.0,0.22645098]
[1727469164347,0.151772,65888.0,65880.0,0.22645098]
[1727469164348,0.151788,65881.0,65880.0,0.22645098]
[1727469164574,0.2668315,65881.0,65880.0,0.22645098]
[1727469164773,0.2668315,65881.0,65880.0,0.23467464]
[1727469164975,0.2668315,65881.0,65880.0,0.00822366]
[1727469165301,0.1150435,65881.0,65874.0,1.26186442]
[1727469165576,0.151795,65878.0,65875.0,0.00822373]
[1727469165795,0.151796,65878.0,65875.0,0.00822373]
[1727469166552,0.05704225,65877.0,65875.0,0.00822373]
[1727469167210,0.20884025,65877.0,65875.0,0.00822373]
[1727469167419,0.05704225,65877.0,65875.0,0.00822373]
[1727469167621,0.151792,65880.0,65874.0,0.00226442]
[1727469167840,0.001,65877.0,65874.0,0.00226442]
[1727469168043,0.001,65877.0,65875.0,0.01022373]
[1727469168525,0.05824135,65877.0,65875.0,0.00822373]
[1727469169097,0.05724135,65877.0,65875.0,0.00822373]
[1727469169281,0.05824135,65877.0,65875.0,0.00822373]
[1727469169460,0.001,65877.0,65875.0,0.00822373]
[1727469169674,0.001,65877.0,65875.0,0.01022373]
[1727469169874,0.002,65877.0,65875.0,0.01022373]
[1727469170489,0.153222,65877.0,65875.0,0.01022373]
[1727469170817,0.001424,65877.0,65875.0,0.01022373]
[1727469171260,0.001424,65877.0,65875.0,0.01187973]
[1727469172563,0.152799,65877.0,65875.0,0.00987973]
[1727469172791,0.537186,65879.0,65875.0,0.00987973]
[1727469173017,0.001,65877.0,65875.0,0.00987973]
[1727469173236,0.002,65877.0,65875.0,0.01387973]
[1727469173708,0.002,65877.0,65875.0,0.16568173]
[1727469173949,0.002,65877.0,65875.0,0.16567973]
[1727469174157,0.001,65877.0,65875.0,0.01387973]
[1727469174348,0.001,65877.0,65875.0,0.01887973]
[1727469174763,0.001,65877.0,65875.0,0.17068073]
[1727469174993,0.001,65877.0,65875.0,0.16568073]
[1727469175201,0.001,65877.0,65876.0,0.1518]
[1727469175412,0.002,65877.0,65875.0,0.17068173]
[1727469175620,0.002,65877.0,65876.0,0.00826103]
[1727469176036,0.002,65877.0,65876.0,0.16006103]
[1727469176246,0.002,65877.0,65876.0,0.00826103]
[1727469176674,0.002,65877.0,65876.0,0.16006103]
[1727469176887,0.001,65877.0,65876.0,0.00826103]
[1727469177100,0.233594,65879.0,65876.0,0.00826103]
[1727469177307,0.001,65877.0,65876.0,0.16506103]
[1727469177513,0.002,65877.0,65876.0,0.17206103]
[1727469177825,0.0818,65879.0,65876.0,0.00826103]
[1727469178033,0.0818,65879.0,65877.0,0.151795]
[1727469178244,0.0828,65879.0,65878.0,0.008261]
[1727469178969,0.0818,65879.0,65878.0,0.008261]
[1727469179375,0.001,65879.0,65878.0,0.160056]
[1727469179584,0.005,65880.0,65879.0,0.151793]
[1727469180067,0.005,65880.0,65879.0,0.1602396]
[1727469181062,0.007,65880.0,65879.0,0.1712396]
[1727469184886,0.00681736,65880.0,65879.0,0.1712396]
[1727469185103,0.00681736,65880.0,65879.0,0.1728956]
[1727469185317,0.002,65880.0,65879.0,0.1728956]
[1727469185751,0.001,65880.0,65879.0,0.1668956]
[1727469185981,0.00481736,65891.0,65879.0,0.28043404]
[1727469186257,0.10477674,65901.0,65890.0,0.303535]
[1727469186258,0.00481736,65894.0,65890.0,0.303535]
[1727469186498,0.00481736,65894.0,65893.0,0.151761]
[1727469186735,0.00481736,65894.0,65893.0,0.1602064]
[1727469187198,0.00481736,65896.0,65893.0,0.0084454]
[1727469187426,0.00481736,65896.0,65895.0,0.151756]
[1727469187875,0.00481736,65896.0,65895.0,0.16014471]
[1727469188547,0.00581736,65896.0,65895.0,0.16814471]
[1727469189976,0.001,65896.0,65895.0,0.16814471]
[1727469190196,0.00481736,65897.0,65896.0,0.151754]
[1727469190416,0.08551736,65898.0,65897.0,0.151751]
[1727469190873,0.08551736,65898.0,65897.0,0.16013969]
[1727469191765,0.08651736,65898.0,65897.0,0.16713969]
[1727469193202,0.08751736,65898.0,65897.0,0.17513969]
[1727469194636,0.08713185,65898.0,65897.0,0.17513969]
[1727469196524,0.00681736,65898.0,65897.0,0.17513969]
[1727469196742,0.002,65898.0,65897.0,0.17513969]
[1727469197165,0.1150435,65910.0,65897.0,0.17513969]
[1727469197166,0.22512334,65916.0,65903.0,0.303472]
[1727469197372,0.22512334,65916.0,65915.0,0.15171]
[1727469197580,0.22512334,65916.0,65913.0,0.151714]
[1727469197581,0.0831,65915.0,65913.0,0.151714]
[1727469197788,0.0831,65915.0,65914.0,0.151712]
[1727469198645,0.1981435,65915.0,65914.0,0.151712]
[1727469198862,0.0831,65915.0,65914.0,0.151712]
[1727469199551,0.0931,65915.0,65914.0,0.151712]
[1727469199758,0.01,65915.0,65914.0,0.151712]
[1727469199964,0.009,65915.0,65914.0,0.456137]
[1727469200180,0.013,65915.0,65914.0,0.456137]
[1727469200401,0.0813,65919.0,65914.0,0.303425]
[1727469200613,0.001654,65921.0,65920.0,0.151699]
[1727469201288,0.001654,65921.0,65920.0,0.15996754]
[1727469202587,0.00142178,65921.0,65920.0,0.15996754]
[1727469203064,0.00242178,65921.0,65920.0,0.16696754]
[1727469203270,0.00242178,65921.0,65920.0,0.15996754]
[1727469203271,0.00142178,65921.0,65920.0,0.15996754]
[1727469203504,0.00142178,65921.0,65920.0,0.16596754]
[1727469203707,0.00242178,65921.0,65920.0,0.16896754]
[1727469204148,0.00242178,65921.0,65920.0,0.17596754]
[1727469206286,0.00212556,65921.0,65920.0,0.17596754]
[1727469209106,0.08385256,65926.0,65925.0,0.151687]
[1727469209329,0.2391405,65926.0,65925.0,0.15978453]
[1727469209758,0.08385256,65926.0,65925.0,0.15978453]
[1727469209976,0.012,65941.0,65932.0,0.303342]
[1727469209977,0.1150435,65933.0,65932.0,0.303342]
[1727469210208,0.27033144,65933.0,65932.0,0.455013]
[1727469210423,0.27033144,65933.0,65932.0,0.46311043]
[1727469211583,0.26962808,65933.0,65932.0,0.15976843]
[1727469211852,0.32387498,65933.0,65932.0,0.00809743]
[1727469212095,0.32387498,65933.0,65928.0,0.151679]
[1727469212096,0.46879932,65933.0,65928.0,0.151679]
[1727469212316,0.08517476,65929.0,65928.0,0.151679]
[1727469212541,0.05530603,65929.0,65928.0,0.151679]
[1727469212974,0.35524093,65933.0,65928.0,0.455036]
[1727469213200,0.1150435,65929.0,65928.0,0.15168]
[1727469213435,0.1160435,65929.0,65928.0,0.15168]
[1727469213659,0.113015,65929.0,65928.0,0.15268]
[1727469213867,0.112015,65929.0,65928.0,0.15268]
[1727469214296,0.112015,65929.0,65928.0,0.15631305]
[1727469214789,0.112015,65929.0,65928.0,0.15931305]
[1727469215444,0.16581143,65929.0,65928.0,0.15931305]
[1727469215900,0.16581143,65929.0,65928.0,0.16331305]
[1727469216313,0.16581143,65929.0,65928.0,0.1714154]
[1727469218388,0.49660071,65929.0,65928.0,0.0197354]
[1727469218563,0.53780428,65929.0,65928.0,0.01163305]
[1727469219031,0.53780428,65929.0,65928.0,0.00863305]
[1727469219270,0.53780428,65929.0,65928.0,0.00463305]
[1727469219469,0.53780428,65929.0,65928.0,0.00663305]
[1727469220097,0.65395341,65929.0,65928.0,0.00663305]
[1727469220936,0.53780428,65929.0,65928.0,0.00663305]
[1727469221362,0.53780428,65929.0,65928.0,0.00828705]
[1727469223080,0.42578928,65929.0,65928.0,0.00828705]
[1727469223285,0.54053578,65929.0,65928.0,0.00828705]
[1727469223909,0.54053578,65929.0,65928.0,0.00628705]
[1727469224542,0.54453578,65929.0,65928.0,0.00628705]
[1727469225401,0.54653578,65929.0,65928.0,0.00628705]
[1727469226503,0.66344076,65929.0,65928.0,0.00628705]
[1727469228924,0.43149228,65929.0,65928.0,0.00628705]
[1727469229148,0.54653578,65929.0,65928.0,0.01439387]
[1727469229800,0.54653578,65929.0,65928.0,0.0143938]
[1727469230877,0.54653578,65929.0,65928.0,0.00628698]
[1727469231506,0.66244076,65929.0,65928.0,0.00628698]
[1727469234764,0.68544076,65929.0,65928.0,0.00628698]
[1727469234974,0.68626876,65929.0,65928.0,0.00628698]
[1727469236037,0.68626876,65929.0,65928.0,0.00628697]
[1727469237874,0.67867513,65929.0,65928.0,0.00628697]
[1727469238077,0.67138787,65929.0,65928.0,0.00628697]
[1727469238401,0.66380429,65929.0,65928.0,0.00628697]
[1727469238832,0.65634106,65929.0,65928.0,0.00628697]
[1727469239468,0.648925,65929.0,65928.0,0.00628697]
[1727469240051,0.69434395,65929.0,65928.0,0.00628697]
[1727469240454,0.648925,65929.0,65928.0,0.00628697]
[1727469240662,0.69440146,65929.0,65928.0,0.00628697]
[1727469241084,0.648925,65929.0,65928.0,0.00628697]
[1727469242311,0.7171397,65929.0,65928.0,0.00628697]
[1727469242531,0.648925,65929.0,65928.0,0.00628697]
[1727469243049,0.73987793,65929.0,65928.0,0.00628697]
[1727469243251,0.73987793,65929.0,65928.0,0.00628696]
[1727469243931,0.39092945,65929.0,65928.0,0.014394]
[1727469244135,0.13478964,65929.0,65928.0,0.00628696]
[1727469244345,0.06649852,65929.0,65928.0,0.01438705]
[1727469244583,0.06649852,65929.0,65928.0,0.00628696]
[1727469245255,0.28446764,65929.0,65928.0,0.01438705]
[1727469245456,0.41350338,65929.0,65928.0,0.01538705]
[1727469245663,0.26182538,65929.0,65928.0,0.01538705]
[1727469245831,0.12978964,65929.0,65928.0,0.01538705]
[1727469246041,0.06911912,65929.0,65928.0,0.16706704]
[1727469246444,0.000828,65929.0,65928.0,0.16706702]
[1727469246619,0.06911912,65929.0,65928.0,0.167067]
[1727469246827,0.06911912,65929.0,65928.0,0.16706699]
[1727469247029,0.06911912,65929.0,65928.0,0.16706698]
[1727469247229,0.06911912,65929.0,65928.0,0.16606698]
[1727469247450,0.10858249,65929.0,65928.0,0.16606697]
[1727469247636,0.10858249,65929.0,65928.0,0.16806697]
[1727469248087,0.10858249,65929.0,65928.0,0.16806696]
[1727469248258,0.10858249,65929.0,65928.0,0.16606695]
[1727469248464,0.10858249,65929.0,65928.0,0.17006695]
[1727469248724,0.10858249,65929.0,65928.0,0.17306695]
[1727469248896,0.04029137,65929.0,65928.0,0.17306695]
[1727469249097,0.10858249,65929.0,65928.0,0.17306694]
[1727469249302,0.10858249,65929.0,65928.0,0.02138694]
[1727469249507,0.08584348,65929.0,65928.0,0.02138693]
[1727469249755,0.04029137,65929.0,65928.0,0.02138693]
[1727469249931,0.10858249,65929.0,65928.0,0.02138693]
[1727469250128,0.10858249,65929.0,65928.0,0.17306693]
[1727469250323,0.10858249,65929.0,65928.0,0.02138692]
[1727469250638,0.22362599,65929.0,65928.0,0.02138692]
[1727469250837,0.37530399,65929.0,65928.0,0.02138692]
[1727469251019,0.37530399,65929.0,65928.0,0.01328683]
[1727469251020,0.30701287,65929.0,65928.0,0.01328683]
[1727469251429,0.3979658,65929.0,65928.0,0.01328683]
[1727469251652,0.4611834,65929.0,65928.0,0.01328683]
[1727469251866,0.65687457,65929.0,65928.0,0.01328683]
[1727469252064,0.65687457,65929.0,65928.0,0.01328682]
[1727469252065,0.67987457,65929.0,65928.0,0.01328682]
[1727469252482,0.67987457,65929.0,65928.0,0.01028682]
[1727469252796,0.5701834,65929.0,65928.0,0.01028682]
[1727469253534,0.5701834,65929.0,65928.0,0.00628682]
[1727469253780,0.5661834,65929.0,65928.0,0.00628682]
[1727469253987,0.5731834,65929.0,65928.0,0.00628682]
[1727469254195,0.5681834,65929.0,65928.0,0.00628682]
[1727469254405,0.5661834,65929.0,65928.0,0.00628682]
[1727469254836,0.5731834,65929.0,65928.0,0.00728682]
[1727469256101,0.5811834,65929.0,65928.0,0.00828682]
[1727469258740,0.5811834,65929.0,65928.0,0.00828681]
[1727469262807,0.3716399,65929.0,65928.0,0.00828681]
[1727469263042,0.60056622,65929.0,65928.0,0.00828681]
[1727469263752,0.4866834,65929.0,65928.0,0.00828681]
[1727469264004,0.40352623,65929.0,65928.0,0.00828681]
[1727469264217,0.38074699,65929.0,65928.0,0.0082868]
[1727469264427,0.2896399,65929.0,65928.0,0.0082868]
[1727469264634,0.2896399,65929.0,65928.0,0.01503079]
[1727469265943,0.2896399,65929.0,65928.0,0.0082868]
[1727469266778,0.38074699,65929.0,65928.0,0.0082868]
[1727469266984,0.2896399,65929.0,65928.0,0.0082868]
[1727469267435,0.28945987,65929.0,65928.0,0.0082868]
[1727469270581,0.26694078,65929.0,65928.0,0.0082868]
[1727469271473,0.26776878,65929.0,65928.0,0.0082868]
[1727469272202,0.26776878,65929.0,65928.0,0.00828679]
[1727469276882,0.34476878,65929.0,65928.0,0.00828679]
[1727469277361,0.45865511,65929.0,65928.0,0.00828679]
[1727469277573,0.34476878,65929.0,65928.0,0.00828679]
[1727469279981,0.45981228,65929.0,65928.0,0.00828679]
[1727469281726,0.45981228,65929.0,65928.0,0.00828678]
[1727469282356,0.46181228,65929.0,65928.0,0.00828678]
[1727469282587,0.67131228,65929.0,65928.0,0.00828678]
[1727469284313,0.67131228,65929.0,65928.0,0.00828677]
[1727469284812,0.55626878,65929.0,65928.0,0.00828677]
[1727469285222,0.80793273,65929.0,65928.0,0.00828677]
[1727469285431,0.67131228,65929.0,65928.0,0.00828677]
[1727469285665,0.80793296,65929.0,65928.0,0.00828677]
[1727469286981,0.67131228,65929.0,65928.0,0.00828677]
[1727469288509,0.67131228,65929.0,65928.0,0.00828676]
[1727469288715,0.66931228,65929.0,65928.0,0.00828676]
[1727469288915,0.8059068,65929.0,65928.0,0.00828676]
[1727469289353,0.8079068,65929.0,65928.0,0.00828676]
[1727469289559,0.67131228,65929.0,65928.0,0.00828676]
[1727469289783,0.47522003,65929.0,65928.0,0.00828676]
[1727469289992,0.44222003,65929.0,65928.0,0.00828676]
[1727469290207,0.45603388,65929.0,65928.0,0.00828676]
[1727469290419,0.46103388,65929.0,65928.0,0.00828676]
[1727469290873,0.46103388,65929.0,65928.0,0.00828675]
[1727469291299,0.48403388,65929.0,65928.0,0.00828675]
[1727469291516,0.37022003,65929.0,65928.0,0.00828675]
[1727469291745,0.4494906,65929.0,65928.0,0.00828675]
[1727469292605,0.56531311,65929.0,65928.0,0.00828675]
[1727469293018,0.4514906,65929.0,65928.0,0.00828675]
[1727469293877,0.4514906,65929.0,65928.0,0.00828674]
[1727469294520,0.4494906,65929.0,65928.0,0.00828674]
[1727469296823,0.4514906,65929.0,65928.0,0.00828674]
[1727469297680,0.4514906,65929.0,65928.0,0.00828673]
[1727469300986,0.4494906,65929.0,65928.0,0.00828673]
[1727469301188,0.4494906,65929.0,65928.0,0.00828672]
[1727469303090,0.4514906,65929.0,65928.0,0.00828672]
[1727469303571,0.4494906,65929.0,65928.0,0.00828671]
[1727469304131,0.4514906,65929.0,65928.0,0.00828671]
[1727469304572,0.4494906,65929.0,65928.0,0.00828671]
[1727469305586,0.4514906,65929.0,65928.0,0.00828671]
[1727469306028,0.4494906,65929.0,65928.0,0.00828671]
[1727469306697,0.56332952,65929.0,65928.0,0.0082867]
[1727469307127,0.4494906,65929.0,65928.0,0.0082867]
[1727469307346,0.56332938,65929.0,65928.0,0.0082867]
[1727469308279,0.4494906,65929.0,65928.0,0.0082867]
[1727469308949,0.56333044,65929.0,65928.0,0.0082867]
[1727469309174,0.56333044,65929.0,65928.0,0.00828669]
[1727469309175,0.4494906,65929.0,65928.0,0.00828669]
[1727469310296,0.36401786,65929.0,65928.0,0.00828669]
[1727469310506,0.36522003,65929.0,65928.0,0.00828669]
[1727469310888,0.45629398,65929.0,65928.0,0.00828669]
[1727469311122,0.46129398,65929.0,65928.0,0.00828668]
[1727469311327,0.45629624,65929.0,65928.0,0.00828668]
[1727469311543,0.36522003,65929.0,65928.0,0.00828668]
[1727469311919,0.37022003,65929.0,65928.0,0.00828668]
[1727469313425,0.50991199,65929.0,65928.0,0.00828668]
[1727469314523,0.37022003,65929.0,65928.0,0.00828668]
[1727469316531,0.37022003,65929.0,65928.0,0.00828667]
[1727469317465,0.48406562,65929.0,65928.0,0.00828667]
[1727469317986,0.37022003,65929.0,65928.0,0.00828667]
[1727469318693,0.46130423,65929.0,65928.0,0.00828667]
[1727469318941,0.60990461,65929.0,65928.0,0.00828667]
[1727469319181,0.60990461,65929.0,65928.0,0.00828666]
[1727469319416,0.51882041,65929.0,65928.0,0.00828666]
[1727469320155,0.51382041,65929.0,65928.0,0.00828666]
[1727469320885,0.60990537,65929.0,65928.0,0.00828666]
[1727469321135,0.60490499,65929.0,65928.0,0.00828666]
[1727469321620,0.60990499,65929.0,65928.0,0.00828665]
[1727469322093,0.60990448,65929.0,65928.0,0.00828665]
[1727469322522,0.60490448,65929.0,65928.0,0.00828665]
[1727469322784,0.51882041,65929.0,65928.0,0.00828665]
[1727469323256,0.60990448,65929.0,65928.0,0.00828665]
[1727469323498,0.60490448,65929.0,65928.0,0.00828665]
[1727469323739,0.60990448,65929.0,65928.0,0.00828665]
[1727469323946,0.51382041,65929.0,65928.0,0.00828664]
[1727469324219,0.60990448,65929.0,65928.0,0.00828664]
[1727469324702,0.51882041,65929.0,65928.0,0.00828664]
[1727469325996,0.51882041,65929.0,65928.0,0.00828663]
[1727469326484,0.60990448,65929.0,65928.0,0.00828663]
[1727469326712,0.60490448,65929.0,65928.0,0.00828663]
[1727469327669,0.51382041,65929.0,65928.0,0.00828663]
[1727469328889,0.08413117,65929.0,65928.0,0.26072222]
[1727469329144,0.015828,65929.0,65928.0,0.26072212]
[1727469329455,0.015828,65929.0,65928.0,0.26072207]
[1727469329689,0.015828,65929.0,65928.0,0.26072202]
[1727469329926,0.015828,65929.0,65928.0,0.26072199]
[1727469330178,0.015828,65929.0,65928.0,0.26072198]
[1727469330410,0.015828,65929.0,65928.0,0.26072195]
[1727469330656,0.015828,65929.0,65928.0,0.26072192]
[1727469331117,0.015828,65929.0,65928.0,0.26072191]
[1727469331336,0.015828,65929.0,65928.0,0.2607219]
[1727469331553,0.015828,65929.0,65928.0,0.26072189]
[1727469331769,0.015828,65929.0,65928.0,0.26328286]
[1727469331994,0.015828,65929.0,65928.0,0.26328283]
[1727469332203,0.008828,65929.0,65928.0,0.26228282]
[1727469332416,0.000828,65929.0,65928.0,0.2612828]
[1727469332630,0.000828,65929.0,65928.0,0.26428278]
[1727469332836,0.000828,65929.0,65928.0,0.26328277]
[1727469333088,0.000828,65929.0,65928.0,0.26128276]
[1727469333328,0.000828,65929.0,65928.0,0.26428275]
[1727469333552,0.000828,65929.0,65928.0,0.26328274]
[1727469333770,0.000828,65929.0,65928.0,0.26628273]
[1727469333771,0.001828,65929.0,65928.0,0.26628273]
[1727469333983,0.001828,65929.0,65928.0,0.26628271]
[1727469334192,0.002828,65929.0,65928.0,0.2722827]
[1727469334407,0.002828,65929.0,65928.0,0.27228269]
[1727469334619,0.002828,65929.0,65928.0,0.27228268]
[1727469334837,0.002828,65929.0,65928.0,0.27228267]
[1727469335274,0.002828,65929.0,65928.0,0.26628266]
[1727469335275,0.001828,65929.0,65928.0,0.26628266]
[1727469335518,0.001828,65929.0,65928.0,0.26628265]
[1727469335723,0.001828,65929.0,65928.0,0.26828263]
[1727469336145,0.002828,65929.0,65928.0,0.27428263]
[1727469336361,0.002828,65929.0,65928.0,0.27428262]
[1727469336793,0.002828,65929.0,65928.0,0.2742826]
[1727469337018,0.002828,65929.0,65928.0,0.27428259]
[1727469337454,0.002828,65929.0,65928.0,0.27428258]
[1727469338093,0.002828,65929.0,65928.0,0.27428257]
[1727469338748,0.002828,65929.0,65928.0,0.27428256]
[1727469339447,0.002828,65929.0,65928.0,0.5111705]
[1727469339670,0.002828,65929.0,65928.0,0.51117049]
[1727469339879,0.002828,65929.0,65928.0,0.51117047]
[1727469340093,0.002828,65929.0,65928.0,0.51117045]
[1727469340306,0.002828,65929.0,65928.0,0.51117044]
[1727469340514,0.002828,65929.0,65928.0,0.51117043]
[1727469341478,0.002828,65929.0,65928.0,0.51117042]
[1727469341907,0.002828,65929.0,65928.0,0.51117041]
[1727469342091,0.22093298,65944.0,65943.0,0.151646]
[1727469342311,0.22093298,65944.0,65943.0,0.15627784]
[1727469342530,0.005,65946.0,65943.0,0.01388234]
[1727469342746,0.005,65946.0,65944.0,0.151642]
[1727469342962,0.005,65946.0,65945.0,0.00925034]
[1727469343192,0.005,65946.0,65945.0,0.15752316]
[1727469343426,0.005,65946.0,65945.0,0.01308215]
[1727469343688,0.016,65946.0,65945.0,0.01308214]
[1727469344054,0.026,65946.0,65945.0,0.01308214]
[1727469344284,0.46564891,65946.0,65945.0,0.01308214]
[1727469344519,0.46564891,65946.0,65945.0,0.0046318]
[1727469344959,0.45464891,65946.0,65945.0,0.01308214]
[1727469345144,0.35274891,65946.0,65945.0,0.01308214]
[1727469345361,0.36374891,65946.0,65945.0,0.01408214]
[1727469345573,0.36874891,65946.0,65945.0,0.01508214]
[1727469345788,0.36874891,65946.0,65945.0,0.01508213]
[1727469346809,0.39174891,65946.0,65945.0,0.01508213]
[1727469347014,0.39174891,65946.0,65945.0,0.00663179]
[1727469347220,0.43719396,65946.0,65945.0,0.00663178]
[1727469348107,0.39174891,65946.0,65945.0,0.00663178]
[1727469351200,0.43719396,65946.0,65945.0,0.00663178]
[1727469351602,0.43716967,65946.0,65945.0,0.00663178]
[1727469351847,0.39174891,65946.0,65945.0,0.00663178]
[1727469352043,0.33215446,65946.0,65945.0,0.00663178]
[1727469353207,0.23035446,65946.0,65945.0,0.00663178]
[1727469353910,0.23035446,65946.0,65945.0,0.01673812]
[1727469354125,0.23035446,65946.0,65945.0,0.00828777]
[1727469354301,0.23118246,65946.0,65945.0,0.00828777]
[1727469354900,0.22618246,65946.0,65945.0,0.00828777]
[1727469355117,0.23118246,65946.0,65945.0,0.00828777]
[1727469357978,0.3468976,65946.0,65945.0,0.00828777]
[1727469358861,0.4619411,65946.0,65945.0,0.00828777]
[1727469359976,0.50736186,65946.0,65945.0,0.00828777]
[1727469360440,0.50236186,65946.0,65945.0,0.00828777]
[1727469360654,0.50736186,65946.0,65945.0,0.00828777]
[1727469360872,0.5417411,65946.0,65945.0,0.00828777]
[1727469361332,0.5417411,65946.0,65945.0,0.00828776]
[1727469362222,0.58717652,65946.0,65945.0,0.00828776]
[1727469362436,0.5417411,65946.0,65945.0,0.00828776]
[1727469362896,0.58717975,65946.0,65945.0,0.00828776]
[1727469363163,0.6634411,65946.0,65945.0,0.00828776]
[1727469363384,0.75428262,65946.0,65945.0,0.00828776]
[1727469364771,0.6634411,65946.0,65945.0,0.00828776]
[1727469364989,0.75433878,65946.0,65945.0,0.00828775]
[1727469365245,0.6634411,65946.0,65945.0,0.00828775]
[1727469366524,0.6654411,65946.0,65945.0,0.00828775]
[1727469366739,0.7790632,65946.0,65945.0,0.00828775]
[1727469369335,0.7654411,65946.0,65945.0,0.00828775]
[1727469369546,0.174662,65936.0,65935.0,0.22645098]
[1727469369775,0.174662,65936.0,65935.0,0.2405902]
[1727469369776,0.40932738,65936.0,65935.0,0.2405902]
[1727469369965,0.41632738,65936.0,65935.0,0.22645098]
[1727469370179,0.151678,65929.0,65926.0,0.22645098]
[1727469370386,0.32639203,65929.0,65928.0,0.01581811]
[1727469370607,0.32639203,65929.0,65928.0,0.001654]
[1727469371755,0.32639203,65929.0,65928.0,0.003654]
[1727469374104,0.32639203,65929.0,65928.0,0.001654]
[1727469374325,0.46140486,65929.0,65928.0,0.001654]
[1727469374543,0.46140486,65929.0,65928.0,0.002654]
[1727469374942,0.46240486,65929.0,65928.0,0.002654]
[1727469385297,0.46240486,65929.0,65928.0,0.01684854]
[1727469385502,0.46240486,65929.0,65928.0,0.002654]
[1727469385762,0.46240486,65929.0,65928.0,0.01684854]
[1727469386873,0.46240486,65929.0,65928.0,0.002654]
[1727469390457,0.32739203,65929.0,65928.0,0.002654]
[1727469390906,0.001,65929.0,65928.0,0.01684854]
[1727469391136,0.001,65929.0,65928.0,0.154334]
[1727469391369,0.001,65929.0,65928.0,0.33962854]
[1727469392781,0.001,65929.0,65928.0,0.18794854]
[1727469392973,0.152678,65929.0,65928.0,0.18794854]
[1727469394140,0.001,65929.0,65928.0,0.33962854]
[1727469395024,0.001,65929.0,65928.0,0.18794854]
[1727469396694,0.152678,65929.0,65928.0,0.18794854]
[1727469398257,0.24466559,65929.0,65928.0,0.10964854]
[1727469398472,0.24466559,65929.0,65928.0,0.01684854]
[1727469399115,0.09298759,65929.0,65928.0,0.01684854]
[1727469399373,0.35970909,65929.0,65928.0,0.01684854]
[1727469401608,0.1160435,65929.0,65928.0,0.01684854]
[1727469401821,0.2677215,65929.0,65928.0,0.01684854]
[1727469407497,0.1160435,65929.0,65928.0,0.01684854]
[1727469407721,0.2677215,65929.0,65928.0,0.01684854]
[1727469408369,0.1160435,65929.0,65928.0,0.01684854]
[1727469408595,0.33836848,65929.0,65928.0,0.01684854]
[1727469409297,0.18669048,65929.0,65928.0,0.01684854]
[1727469409547,0.33836848,65929.0,65928.0,0.01684854]
[1727469409785,0.2677215,65929.0,65928.0,0.01684854]
[1727469410240,0.001,65929.0,65928.0,0.01684854]
[1727469410476,0.1160435,65929.0,65928.0,0.01684854]
[1727469411651,0.16156621,65929.0,65928.0,0.01684854]
[1727469412166,0.31324421,65929.0,65928.0,0.01684854]
[1727469412407,0.31324421,65929.0,65928.0,0.01997131]
[1727469412877,0.16156621,65929.0,65928.0,0.01997131]
[1727469413102,0.16156621,65929.0,65928.0,0.17165131]
[1727469413835,0.16156621,65929.0,65928.0,0.01997131]
[1727469414790,0.1160435,65929.0,65928.0,0.17165131]
[1727469415021,0.16159979,65929.0,65928.0,0.17165131]
[1727469415722,0.18432757,65929.0,65928.0,0.17165131]
[1727469415995,0.1160435,65929.0,65928.0,0.17165131]
[1727469416229,0.16160563,65929.0,65928.0,0.17165131]
[1727469416749,0.1160435,65929.0,65928.0,0.17165131]
[1727469416979,0.16160326,65929.0,65928.0,0.17165131]
[1727469417639,0.1160435,65929.0,65928.0,0.17165131]
[1727469419544,0.1843811,65929.0,65928.0,0.17165131]
[1727469420477,0.1160435,65929.0,65928.0,0.17165131]
[1727469421474,0.1843811,65929.0,65928.0,0.17165131]
[1727469422632,0.1843811,65929.0,65928.0,0.01997131]
[1727469422633,0.62458832,65929.0,65928.0,0.01997131]
[1727469422869,0.51069232,65929.0,65928.0,0.01997131]
[1727469423108,0.58969232,65929.0,65928.0,0.00577677]
[1727469426516,0.59169232,65929.0,65928.0,0.00577677]
[1727469426740,0.58969232,65929.0,65928.0,0.00577677]
[1727469427645,0.58969232,65929.0,65928.0,0.00577676]
[1727469436170,0.70349161,65929.0,65928.0,0.00577676]
[1727469436452,0.7034918,65929.0,65928.0,0.00577676]
[1727469436934,0.70348952,65929.0,65928.0,0.00577676]
[1727469437169,0.58969232,65929.0,65928.0,0.00577676]
[1727469437402,0.70348838,65929.0,65928.0,0.00577676]
[1727469438628,0.58969232,65929.0,65928.0,0.00577676]
[1727469442545,0.59169232,65929.0,65928.0,0.00577676]
[1727469443957,0.58969232,65929.0,65928.0,0.00577676]
[1727469446196,0.47464882,65929.0,65928.0,0.00577676]
[1727469446434,0.58969232,65929.0,65928.0,0.00577676]
[1727469455504,0.59169232,65929.0,65928.0,0.00577676]
[1727469455737,0.58969232,65929.0,65928.0,0.00577676]
[1727469456303,0.61769232,65929.0,65928.0,0.00577676]
[1727469456556,0.61769232,65929.0,65922.0,0.0495196]